Cogmind - Beta 13 @@@ ROGUE MODE // 2024.04.22 @ 16:41:01 Player: Fusha Result: Destroyed by S-10 Pest with Light Assault Rifle Performance ------------- Evolutions (1) 500 Regions Visited (4) 800 Robots Destroyed (62) 310 Value Destroyed (1674) 1674 Prototype IDs (0) 0 Alien Tech Used (0) 0 Bonus (279) 279 TOTAL SCORE: 3563 Bonus ------- High Alert Combat Kills 79 Entered Garrisons 200 Cogmind --------- Core Integrity 0/400 Matter 300/300 Energy 261/265 System Corruption 0% Temperature Cool (2) Movement Walking (120) Location -9/Garrison Parts ------- > --- POWER (1) -------- Improved Ion Engine > --- PROPULSION (2) --- Aluminum Leg Aluminum Leg > --- UTILITY (4) ------ Heat Sink Heat Sink Signal Interpreter > --- WEAPON (2) ------- Light Assault Rifle > --- INVENTORY (5) ---- Ion Engine Light Ion Engine Aluminum Leg Small Matter Pod (50) Drone Bay (2/2) Peak State ------------ > --- POWER ------------ Improved Ion Engine > --- PROPULSION ------- Aluminum Leg Aluminum Leg > --- UTILITY ---------- Heat Sink Heat Sink Signal Interpreter Drone Bay > --- WEAPON ----------- Beam Rifle Beam Rifle > --- INVENTORY -------- Small Matter Pod Drone Bay Small Laser Assault Rifle Light Assault Rifle [Rating: 16] Favorites ----------- Power Ion Engine Engine Ion Engine Propulsion Aluminum Leg Leg Aluminum Leg Flight Unit Flight Unit Utility Heat Sink Device Heat Sink Storage Small Storage Unit Processor Signal Interpreter Protection Light Armor Plating Weapon Assault Rifle Energy Gun Beam Rifle Ballistic Gun Assault Rifle Build | -11 -10 -9 -9 -9 ------- Run | Yrd Mat Mat Sto Gar Slots Evolved 2 | . . 2 . . Power . | . . . . . Propulsion . | . . . . . Utility 2 | . . 2 . . Weapon . | . . . . . Parts Attached 64 | 6 16 3 13 26 Power 14 | 1 4 . 4 5 Engine 14 | 1 4 . 4 5 Core . | . . . . . Reactor . | . . . . . Propulsion 21 | 2 4 . 4 11 Treads . | . . . . . Leg 18 | 2 4 . 4 8 Wheel . | . . . . . Hover . | . . . . . Flight 3 | . . . . 3 Utility 14 | 1 4 1 4 4 Device 10 | . 2 1 3 4 Storage 1 | 1 . . . . Processor 2 | . 2 . . . Hackware . | . . . . . Protection 1 | . . . 1 . Artifact . | . . . . . Weapon 15 | 2 4 2 1 6 Energy Gun 7 | . 3 1 1 2 Energy Cannon . | . . . . . Ballistic Gun 8 | 2 1 1 . 4 Ballistic Cannon . | . . . . . Launcher . | . . . . . Special Weapon . | . . . . . Impact Weapon . | . . . . . Slashing Weapon . | . . . . . Piercing Weapon . | . . . . . Special Melee Weapon . | . . . . . Unidentified Prototypes . | . . . . . Parts Lost 23 | . 2 . 3 18 Power 6 | . 1 . . 5 Propulsion 5 | . . . 1 4 Utility 6 | . . . 2 4 Weapon 6 | . 1 . . 5 Highest Loss Streak 9 | . 2 . 2 9 To Critical Strikes . | . . . . . Average Slot Usage (%) 92 | . 96 88 95 85 Engine 11 | . 14 11 10 9 Leg 23 | . 28 22 22 19 Device 16 | . 5 22 26 21 Storage 3 | . 8 . . . Processor 11 | . 11 11 11 11 Protection 1 | . . . 2 1 Energy Gun 9 | . 8 10 16 5 Ballistic Gun 14 | . 18 11 5 16 Naked Turns . | . . . . . Heaviest Build 21 | 14 14 10 21 18 Greatest Support 20 | 20 20 20 20 20 Greatest Overweight (x) 1 | . . . 1 1 Average Overweight (x) . | . . . . . Largest Inventory Capacity 8 | 8 8 5 5 5 Average Capacity 5 | 5 6 5 5 5 Most Carried 6 | 1 6 4 5 5 Average Carried 4 | . 4 3 4 4 Final Capacity 8 | 8 5 5 5 5 Final Carried 5 | 1 5 4 5 5 Class Distribution -------------------- 74% | Scavenger-Mutant 25% | Mutant Dominant Class ---------------- Mutant | -10/Materials Scavenger-Mutant | -9/Materials Scavenger-Mutant | -9/Storage Scavenger-Mutant | -9/Garrison Resources | -11 -10 -9 -9 -9 ----------- Run | Yrd Mat Mat Sto Gar Matter Collected 1338 | 257 578 . 217 286 Remotely . | . . . . . Salvage Created 2437 | 65 833 . 909 630 Parts 119 | . 39 . 42 38 Haulers Intercepted 2 | . 1 . 1 . Recyclers Shooed 3 | . 2 . 1 . Parts Field Recycled . | . . . . . Retrieved Matter . | . . . . . Parts Self-Destructed . | . . . . . Prevented . | . . . . . Kills | -11 -10 -9 -9 -9 ------- Run | Yrd Mat Mat Sto Gar Combat Hostiles Destroyed 48 | . 13 . 14 21 Guns 46 | . 13 . 14 19 Classes Destroyed 8 | 1 5 . 1 1 Worker 2 | . 1 . 1 . Builder 1 | . 1 . . . Hauler 2 | . 1 . 1 . Recycler 5 | 1 2 . 2 . Watcher 4 | . 3 . 1 . Swarmer 9 | . . . . 9 Grunt 31 | . 13 . 7 11 Sentry 8 | . . . 7 1 Best Kill Streak 8 | 1 5 . 5 8 Combat Bots Only 8 | . 5 . 4 8 Max Kills in Single Turn 2 | 1 1 . 1 2 Gunslinging 1 | . . . . 1 Exploded . | . . . . . Melee . | . . . . . Uniques/NPCs Destroyed . | . . . . . Combat | -11 -10 -9 -9 -9 -------- Run | Yrd Mat Mat Sto Gar Hostile Shots Fired 363 | . 66 10 70 217 Missed 84 | . 9 3 22 50 Damage Taken 3109 | . 725 52 626 1706 Core 525 | . 124 8 111 282 Absorbed by Shields 28 | . . . . 28 Regen/Repaired (Parts) 33 | . . . 33 . Core Remaining (%) 75 | 100 50 . . . Volleys Fired 202 | 9 69 . 56 68 Largest 2 | 2 2 . 2 2 Hottest 112 | 40 105 . 112 112 Shots Fired 393 | 18 133 . 112 130 Gun 393 | 18 133 . 112 130 Cannon . | . . . . . Launcher . | . . . . . Special . | . . . . . Kinetic 226 | 18 107 . 24 77 Thermal 167 | . 26 . 88 53 Explosive . | . . . . . Electromagnetic . | . . . . . Robot Hit Streak 19 | 4 19 . 18 14 Robot Miss Streak 4 | 2 4 . 3 3 Penetration Max . | . . . . . Secondary Targets 13 | . 5 . . 8 Max Gunslinging Chain 1 | . 1 . . 1 Shots Hit Robots 278 | 10 90 . 80 98 Core Hits 106 | 2 35 . 30 39 Critical Kills 1 | . . . . 1 Critical Parts Destroyed . | . . . . . Critical Strikes 11 | . 1 . 4 6 Burn 10 | . 1 . 4 5 Destroy 1 | . . . . 1 Melee Attacks . | . . . . . Impact . | . . . . . Slashing . | . . . . . Piercing . | . . . . . Sneak Attacks . | . . . . . Combat Hostiles . | . . . . . Follow-up Attacks . | . . . . . Damage Inflicted 3560 | 117 1214 . 1172 1057 Guns 3560 | 117 1214 . 1172 1057 Cannons . | . . . . . Explosions . | . . . . . Melee . | . . . . . Ramming . | . . . . . Kinetic 1792 | 117 987 . 243 445 Thermal 1768 | . 227 . 929 612 Explosive . | . . . . . Electromagnetic . | . . . . . Impact . | . . . . . Slashing . | . . . . . Piercing . | . . . . . Highest Corruption . | . . . . . Average Corruption . | . . . . . Corruption Purged . | . . . . . Corruption Blocked . | . . . . . Overload Shots . | . . . . . Overflow Damage . | . . . . . Projectiles . | . . . . . Explosions . | . . . . . Melee . | . . . . . Knockbacks . | . . . . . Impact . | . . . . . Kinetic . | . . . . . Secondary . | . . . . . Self-Inflicted Damage . | . . . . . Shots . | . . . . . Rammed . | . . . . . Targets Rammed . | . . . . . Kicked . | . . . . . Crushed . | . . . . . Highest Temperature 54 | . 36 . 7 54 Average Temperature 11 | . 13 . 2 12 Received Heat Transfer 1271 | . 429 . 246 596 Siege Activations . | . . . . . Robots Corrupted . | . . . . . Combat Hostiles . | . . . . . Parts Fried . | . . . . . Impact Corruptions . | . . . . . Robots Melted 2 | . . . . 2 Combat Hostiles 2 | . . . . 2 Parts Melted 7 | . . . 5 2 Heat Transferred 4819 | . 570 . 2627 1622 Parts Sabotaged . | . . . . . Parts Stolen . | . . . . . Parts Stripped . | . . . . . Power Chain Reactions . | . . . . . Alert | -11 -10 -9 -9 -9 ------- Run | Yrd Mat Mat Sto Gar Peak Influence 580 | 5 161 51 387 580 Initial 212 | . 3 51 21 212 Average 216 | 3 79 51 201 425 Maximum Alert Level 2 | . . . 2 2 Low Security (%) 54 | 100 100 100 43 . Level 1 21 | . . . 56 29 Level 2 23 | . . . . 70 Level 3 . | . . . . . Level 4 . | . . . . . Level 5 . | . . . . . High Security . | . . . . . Max Security . | . . . . . Squads Dispatched 6 | . 3 . 3 . Investigation 2 | . 2 . . . Extermination . | . . . . . Reinforcement 1 | . 1 . . . Assault . | . . . . . Garrison 3 | . . . 3 . Intercept . | . . . . . Searches Triggered . | . . . . . Construction Impeded . | . . . . . Haulers Reinforced . | . . . . . Active Scanning Responses . | . . . . . Cargo Convoy Interrupts . | . . . . . Stealth | -11 -10 -9 -9 -9 --------- Run | Yrd Mat Mat Sto Gar Distress Signals 3 | . . . 3 . Communications Jammed . | . . . . . Distress Signals . | . . . . . Times Spotted 72 | . 19 4 21 28 Peak Tracking Total 8 | . 5 4 7 8 Tactical Retreats 6 | . . . 4 2 Traps | -11 -10 -9 -9 -9 ------- Run | Yrd Mat Mat Sto Gar Traps Triggered 8 | . 2 . . 6 Indirectly . | . . . . . Trap Hack Attempts . | . . . . . Triggered . | . . . . . Disarmed . | . . . . . Reprogrammed . | . . . . . Reused . | . . . . . Traps Extracted . | . . . . . Installed . | . . . . . Triggered . | . . . . . Machines | -11 -10 -9 -9 -9 ---------- Run | Yrd Mat Mat Sto Gar Machines Disabled . | . . . . . Max in Single Turn . | . . . . . Machines Repaired . | . . . . . Machines Dismantled . | . . . . . Machines Sabotaged . | . . . . . Overloaded Fab Kills . | . . . . . Hacking | -11 -10 -9 -9 -9 --------- Run | Yrd Mat Mat Sto Gar Machines Accessed 13 | . 7 . 5 1 Terminals 9 | . 6 . 2 1 Fabricators . | . . . . . Repair Stations 1 | . . . 1 . Recycling Units 2 | . 1 . 1 . Scanalyzers . | . . . . . Garrison Access 1 | . . . 1 . Total Hacks 33 | . 21 . 10 2 Successful 23 | . 15 . 6 2 Failed 10 | . 6 . 4 . Catastrophic . | . . . . . Database Lockouts . | . . . . . Manual 24 | . 19 . 4 1 Terminals 26 | . 20 . 4 2 Fabricators . | . . . . . Repair Stations 4 | . . . 4 . Recycling Units 2 | . 1 . 1 . Scanalyzers . | . . . . . Garrison Access 1 | . . . 1 . Terminal Hacks 10 | . 8 . 1 1 Robot Analysis 2 | . 2 . . . Open Door 1 | . . . 1 . Emergency Access Points 1 | . . . . 1 Terminal Index 1 | . 1 . . . Alert Level 2 | . 2 . . . Locate Traps 2 | . 2 . . . Zone Layout 1 | . 1 . . . Fabricator Hacks . | . . . . . Repair Station Hacks 2 | . . . 2 . Scan Component 1 | . . . 1 . Repair 1 | . . . 1 . Recycling Unit Hacks . | . . . . . Scanalyzer . | . . . . . Garrison Access Hacks 1 | . . . 1 . Unlock Access 1 | . . . 1 . Unauthorized Hacks 10 | . 7 . 2 1 Terminals 8 | . 6 . 1 1 Botnet 7 | . 5 . 1 1 Operators 1 | . 1 . . . Fabricators . | . . . . . Repair Stations . | . . . . . Recycling Units 2 | . 1 . 1 . Reject 2 | . 1 . 1 . Scanalyzers . | . . . . . Garrison Access . | . . . . . Data Cores Recovered . | . . . . . Used . | . . . . . Hacking Detections 9 | . 6 . 2 1 Full Trace Events . | . . . . . Feedback Events . | . . . . . Feedback Blocked . | . . . . . Robot Schematics Acquired . | . . . . . Robots Built . | . . . . . Authchips . | . . . . . Time . | . . . . . Total Robot Build Rating . | . . . . . Part Schematics Acquired . | . . . . . Parts Built . | . . . . . Authchips . | . . . . . Time . | . . . . . Total Part Build Rating . | . . . . . Parts Repaired 1 | . . . 1 . Time 26 | . . . 26 . Parts Recycled . | . . . . . Recycled Matter . | . . . . . Retrieved Matter . | . . . . . Retrieved Components . | . . . . . Parts Scanalyzed . | . . . . . Part Schematics Acquired . | . . . . . Parts Damaged . | . . . . . Bothacking | -11 -10 -9 -9 -9 ------------ Run | Yrd Mat Mat Sto Gar Used RIF Installer . | . . . . . Robots Hacked . | . . . . . Non-combat . | . . . . . Combat . | . . . . . Robot Hacks Applied . | . . . . . Relay Couplers Released . | . . . . . Fabnet Peak Effective % . | . . . . . Robots Rewired . | . . . . . Allies Hacked . | . . . . . Hacks Repelled . | . . . . . Allies | -11 -10 -9 -9 -9 -------- Run | Yrd Mat Mat Sto Gar Total Allies . | . . . . . Largest Group . | . . . . . Highest-Rated Group . | . . . . . Highest-Rated Ally . | . . . . . Total Orders . | . . . . . Ally Attacks . | . . . . . Total Damage . | . . . . . Kills . | . . . . . Allies Corrupted . | . . . . . Allies Melted . | . . . . . Intel | -11 -10 -9 -9 -9 ------- Run | Yrd Mat Mat Sto Gar Robot Analysis Total 2 | . 2 . . . Derelict Logs Recovered . | . . . . . Drone Launches . | . . . . . Drone Recoveries . | . . . . . Exploration | -11 -10 -9 -9 -9 ------------- Run | Yrd Mat Mat Sto Gar Turns Passed 2677 | 109 978 126 567 897 Spaces Moved 1512 | 62 609 101 229 511 Core 5 | 3 . . . 2 Treads . | . . . . . Legs 1480 | 59 609 101 229 482 Wheels . | . . . . . Hover . | . . . . . Flight 27 | . . . . 27 Fastest Speed 37 | 50 120 120 120 37 Average Speed 120 | 116 120 120 127 118 Slowest Speed 190 | 120 120 120 190 120 Overloaded Moves . | . . . . . Propulsion Burnouts . | . . . . . Robots Hopped . | . . . . . Cave-ins Triggered . | . . . . . Exploration Rate (%) 34 | 4 82 8 26 52 Regions Visited 4 Branch Regions 1 Pre-discovered Areas . | . . . . . Known Exits Taken 3 | . 1 1 1 . Unknown Exits Taken 1 | 1 . . . . Scrap Searched . | . . . . . Spaces Dug . | . . . . . Terrain Destroyed . | . . . . . Melee . | . . . . . Projectile . | . . . . . AOE . | . . . . . Terrain Rammed . | . . . . . Walls Destroyed . | . . . . . Machines Disabled . | . . . . . Actions | -11 -10 -9 -9 -9 --------- Run | Yrd Mat Mat Sto Gar Total 1980 | 77 722 106 391 684 Wait 148 | . 13 . 82 53 Move 1508 | 61 608 100 228 511 Hop . | . . . . . Pick Up 15 | 1 5 1 4 4 Fast Attach 36 | 6 7 1 5 17 Attach 10 | . 2 1 2 5 Detach 1 | . 1 . . . Swap 18 | . 7 1 6 4 Drop 29 | . 10 2 8 9 Fire 202 | 9 69 . 56 68 Melee . | . . . . . Ram . | . . . . . Kick . | . . . . . Crush . | . . . . . Escape Stasis 13 | . . . . 13 Rewire . | . . . . . Trap . | . . . . . Miscellaneous . | . . . . . Route ------- -11/Scrapyard -10/Materials (discovered 2 exits: *Mat x2) -9/Materials -9/Storage -9/Garrison (discovered 3 exits: *Rec x3) History --------- Turn | Location | Event 4 | -11/Scrapyard | Discovered new exit (range 15) 110 | -11/Scrapyard | Entered Materials 304 | -10/Materials | Build established: Mutant 810 | -10/Materials | Discovered new exit (range 12) 998 | -10/Materials | Build established: Scavenger-Mutant 1051 | -10/Materials | Discovered new exit (range 10) 1087 | -10/Materials | Identified exit to Materials 1088 | -10/Materials | Entered another Materials area 1088 | -9/Materials | Evolved 2 slots: Utility x2 1092 | -9/Materials | Discovered new exit (range 8) 1111 | -9/Materials | Identified exit to Storage 1214 | -9/Materials | Entered Storage 1258 | -9/Storage | Repaired Lgt. Ion Engine 1374 | -9/Storage | Identified exit to Garrison 1439 | -9/Storage | Garrison activated, responded to threat 1781 | -9/Storage | Entered Garrison 1807 | -9/Garrison | Triggered checkpoint 1859 | -9/Garrison | Triggered checkpoint 1907 | -9/Garrison | Core integrity fell below 50% 1941 | -9/Garrison | Destroyed 8 combat bots 1944 | -9/Garrison | Lost 9 parts (2p2n2u3w) 2041 | -9/Garrison | Triggered checkpoint 2162 | -9/Garrison | Lost 5 parts (2p2n1w) 2327 | -9/Garrison | Discovered new exit (range 8) 2334 | -9/Garrison | Identified exit to Recycling 2449 | -9/Garrison | Discovered exit to Recycling (range 13) 2486 | -9/Garrison | Core integrity fell below 20% 2519 | -9/Garrison | Triggered checkpoint 2537 | -9/Garrison | Lost 3 parts (1p2u) 2573 | -9/Garrison | Triggered checkpoint 2642 | -9/Garrison | Discovered exit to Recycling (range 15) 2678 | -9/Garrison | Destroyed by S-10 Pest with Light Assault Rifle Last Messages --------------- 02590_ Field strength at 85. 02591_ Field strength at 70. 02592_ Field strength at 55. 02593_ Field strength at 40. 02594_ Field strength at 25. 02595_ Field strength at 10. 02596_ Stasis field depleted. 02607_ Triggered Stasis Trap. 02607_ A bubble of rippling energy engulfs the area. 02607_ Field strength at 85. 02615_ G-34 Mercenary destroyed. 02615_ Switching to secondary target: G-47 Trooper. 02623_ G-47 Trooper destroyed. 02625_ Field strength at 42. 02626_ Field strength at 27. 02627_ Field strength at 12. 02628_ Stasis field depleted. 02639_ Acquired 34 matter. 02642_ EXIT=FOUND: RECYCLING 02675_ Lgt. Assault Rifle destroyed. Map ----- +----------------------------------------------------+ | ?????????????????????????????????????????????????? | | ?????????????????????????????????????????????????? | | ?????????????????????????????????????????????????? | | ?????????????????????????????????????????????????? | | ?????????????????????????????????????????????????? | | ?????????????????????????????????????????????????? | | ?????????????????????????????????????????????????? | | ?????????????????????????????????????????????????? | | ?????????????????????????????????????????????????? | | ?????????????????????????????????????????????????? | | ?????????????????????????????????????????????????? | | ?????????????????????????????????????????????????? | | ???????????????????????????????????????????????# | | ?????????????????????????????????????????????????? | | ?????????????????????????+???????####????????????? | | ????????????????????????????????""""#????????????? | | ???????????????????#####"""##### ##????????????? | | ???????????????????# +????????????? | | ???????????????????# #????????????? | | ???????????????????# ######+#####++#????????????? | | ??????+????????????# #????# #???????????????????? | | ???????????????????# #????# #???????????????????? | | ??????> ############ ######+#####++####+##??????? | | ????? #??????? | | ????? %* ^ ^ #??????? | | ????? *%! @ ^ ^ #??????? | | ?????????############+#############+### #??????? | | ??????????????????????????????????????# #??????? | | ??????????????????????????????????????# #??????? | | ??????????????????????????????????????# #??????? | | ??????????????????????????????????????# #??????? | | ??????????????????????????????????????+ #??????? | | ??????????????????????????????????????# ##""""## | | ??????????????????????????????????????# | | ??????????????????????????????????????# | | ??????????????????????????????????????# | | ??????????????????????????????????????# ## ## | | ????????????????????????????????????### ## ## | | ????????????????????????????????????+ | | ????????????????????????????????????# | | ????????????????????????????????????# | | ????????????????????????????????????+ | | ????????????????????????????????????### ## ## | | ??????????????????????????????????????# ## ## | | ????????????????????????????#?????????# | | ????????????????????????+??? ?????????+ =! | | ???????????????????????????# #????????# = | | ???????????????????????????# #????????## ## ## | | ???????????????????????????# #?????????# ## #? | | ???????????????????????????#!#?????????# #######? | +----------------------------------------------------+ Best States ------------- Heat Dissipation 48 Energy Generation 12 Energy Capacity 265 Matter Stores 300 Matter Capacity 300 Sight Range 16 Robot Scan Range 14 Terrain Scan Density 10 Armor Coverage 150 Evasion (%) 62 Item Schematics ----------------- None Robot Schematics ------------------ None Fabricated ------------ Nothing Alien Tech Used ----------------- None Achievements -------------- None Challenges ------------ None Game ------ Seed ImprovedCarbideDatajack Manual? 0 Play Time 00:30:12 Cumulative 87.7 hours Start 2024.04.22 @ 16:11:07 End 2024.04.22 @ 16:41:01 Sessions 1 Manual Loads 0 Difficulty Rogue Special Mode None Game No. 38 Rogue 38 Adventurer 0 Explorer 0 Win Type - Total 0 Types 0/0/0/0/0/0/0/0/0 Lore% 33 Gallery% 49 Achievement% 37 Wizard Run 0 Options --------- Layout 0 ASCII 1 Keyboard 0 Movement Mouse Keybinds 0 Fullscreen 2 Font 18/Terminus Map View 76x50 Zoom Use 0% Tactical HUD 1 Map Filters NONE Filters NONE Steam 1 RUN: 7bf44d96-3d1e-45b7-afcc-87fc2a890840